Cogmind - Beta 16 @@@ ROGUE MODE // 2025.12.30 @ 23:31:29 Player: tritri Result: Destroyed by Y-45 Defender with Beam Rifle Performance ------------- Evolutions (1) 500 Regions Visited (3) 600 Robots Destroyed (19) 95 Value Destroyed (396) 396 Prototype IDs (1) 20 Alien Tech Used (0) 0 Bonus (0) 0 TOTAL SCORE: 1611 Bonus ------- None Cogmind --------- Core Integrity 0/400 Matter 95/300 Energy 250/250 System Corruption 2% Temperature Cool (9) Movement Flying (250) Ox3 Location -9/Materials Parts ------- > --- POWER (1) -------- Ion Engine > --- PROPULSION (3) --- Improved Flight Unit > --- UTILITY (3) ------ Small Storage Unit Transport Network Coupler > --- WEAPON (2) ------- Rocket Launcher Mace > --- INVENTORY (8) ---- Compact Wheel Flight Unit Datajack Mining Laser Peak State ------------ > --- POWER ------------ (None) > --- PROPULSION ------- VTOL Module Improved Flight Unit Improved Flight Unit > --- UTILITY ---------- Small Storage Unit Transport Network Coupler Targeting Computer > --- WEAPON ----------- Light Assault Rifle Mace > --- INVENTORY -------- Compact Wheel Flight Unit Flight Unit Datajack Mining Laser [Rating: 14] Favorites ----------- Power Light Ion Engine Engine Light Ion Engine Power Core Light Nuclear Core Propulsion Aluminum Leg Leg Aluminum Leg Flight Unit Flight Unit Utility Small Storage Unit Storage Small Storage Unit Processor Targeting Computer Weapon Light Assault Rifle Ballistic Gun Light Assault Rifle Launcher Rocket Launcher Impact Weapon Mace Build | -11 -10 -10 -9 ------- Run | Yrd Mat Min Mat Slots Evolved 2 | . . . 2 Power . | . . . . Propulsion 1 | . . . 1 Utility 1 | . . . 1 Weapon . | . . . . Parts Attached 25 | 6 3 . 16 Power 4 | 1 1 . 2 Engine 3 | 1 1 . 1 Core 1 | . . . 1 Reactor . | . . . . Propulsion 12 | 2 . . 10 Treads . | . . . . Leg 2 | 2 . . . Wheel . | . . . . Hover . | . . . . Flight 10 | . . . 10 Utility 3 | 1 1 . 1 Device . | . . . . Storage 1 | 1 . . . Processor 2 | . 1 . 1 Hackware . | . . . . Protection . | . . . . Artifact . | . . . . Weapon 6 | 2 1 . 3 Energy Gun . | . . . . Energy Cannon . | . . . . Ballistic Gun 4 | 2 1 . 1 Ballistic Cannon . | . . . . Launcher 1 | . . . 1 Special Weapon . | . . . . Impact Weapon 1 | . . . 1 Slashing Weapon . | . . . . Piercing Weapon . | . . . . Special Melee Weapon . | . . . . Unidentified Prototypes 1 | . . . 1 Parts Lost 15 | . 1 . 14 Power 3 | . 1 . 2 Propulsion 8 | . . . 8 Utility 1 | . . . 1 Weapon 3 | . . . 3 Highest Loss Streak 5 | . 1 . 5 To Critical Strikes . | . . . . Average Backups 6 | 2 7 8 5 Power . | . 1 1 . Propulsion 3 | . 4 4 2 Utility . | . . . . Weapon 1 | . 1 2 1 Tool/Special . | . . . . Unused Backups 5 | . 2 . 3 Power 1 | . 1 . . Propulsion 2 | . 1 . 1 Utility . | . . . . Weapon 1 | . . . 1 Tool/Special 1 | . . . 1 Average Slot Usage (%) 87 | . 93 100 79 Engine 10 | . 13 14 6 Leg 15 | . 27 28 . Flight 11 | . . . 27 Storage 12 | . 14 14 11 Processor 12 | . 10 14 14 Ballistic Gun 19 | . 27 28 8 Launcher 1 | . . . 2 Impact Weapon 2 | . . . 6 Peak Build Rating 14 | 6 8 8 14 Average Rating 8 | 5 7 8 10 On Entrance 5 | . 6 8 8 Avg Prop Armor Cover (%) . | . . . . Naked Turns . | . . . . Heaviest Build 16 | 11 11 10 16 Greatest Support 20 | 20 20 20 20 Greatest Overweight (x) 3 | 3 1 . 3 Average Overweight (x) . | . . . . Largest Inventory Capacity 8 | 8 8 8 8 Average Capacity 7 | 7 8 8 8 Most Carried 8 | 4 8 8 8 Average Carried 6 | 2 7 8 5 Final Capacity 8 | 8 8 8 8 Final Carried 8 | 4 8 8 4 Class Distribution -------------------- 73% | Mutant 18% | Scavenger-Mutant 7% | Sprinter Dominant Class ---------------- Mutant | -10/Materials Mutant | -10/Mines Scavenger-Mutant | -9/Materials Resources | -11 -10 -10 -9 ----------- Run | Yrd Mat Min Mat Matter Collected 522 | 197 139 . 186 Remotely . | . . . . Salvage Created 501 | . 79 . 422 Parts 39 | . 15 . 24 Haulers Intercepted 3 | . . . 3 Recyclers Shooed . | . . . . Parts Field Recycled . | . . . . Retrieved Matter . | . . . . Parts Self-Destructed . | . . . . Prevented . | . . . . Parts Restored . | . . . . Kills | -11 -10 -10 -9 ------- Run | Yrd Mat Min Mat Combat Hostiles Destroyed 15 | . 5 . 10 Melee 1 | . . . 1 Guns 9 | . 5 . 4 AOE 3 | . . . 3 Classes Destroyed 6 | . 1 . 5 Hauler 3 | . . . 3 Operator 1 | . . . 1 Swarmer 8 | . 5 . 3 Grunt 3 | . . . 3 Duelist 1 | . . . 1 Sentry 3 | . . . 3 Best Kill Streak 3 | . 3 . 3 Combat Bots Only 3 | . 3 . 2 Max Kills in Single Turn 1 | . 1 . 1 Gunslinging . | . . . . Exploded 1 | . . . 1 Melee 1 | . . . 1 Uniques/NPCs Destroyed . | . . . . Combat | -11 -10 -10 -9 -------- Run | Yrd Mat Min Mat Hostile Shots Fired 230 | . 68 . 162 Missed 91 | . 24 . 67 Hits 139 | . 44 . 95 Melee 3 | . . . 3 Projectile 136 | . 44 . 92 Critical Strikes 1 | . . . 1 Damage Taken 1583 | . 384 . 1199 Core 478 | . 74 . 404 Absorbed by Shields . | . . . . Regen/Repaired (Parts) 32 | . 32 . . Core Remaining (%) 85 | 100 . 70 . Volleys Fired 95 | . 18 . 77 Largest 2 | . 2 . 2 Hottest 40 | . 40 . 40 Shots Fired 114 | . 33 . 81 Gun 97 | . 33 . 64 Cannon . | . . . . Launcher 17 | . . . 17 Special . | . . . . Kinetic 97 | . 33 . 64 Thermal . | . . . . Explosive 17 | . . . 17 Electromagnetic . | . . . . Robot Hit Streak 14 | . 4 . 14 Robot Miss Streak 7 | . 3 . 7 Penetration Max . | . . . . Secondary Targets 3 | . 2 . 1 Max Gunslinging Chain 1 | . 1 . 1 Shots Hit Robots 64 | . 13 . 51 Core Hits 33 | . 7 . 26 Critical Kills . | . . . . Critical Parts Destroyed 2 | . . . 2 Critical Strikes 2 | . . . 2 Smash 2 | . . . 2 Melee Attacks 7 | . . . 7 Impact 7 | . . . 7 Slashing . | . . . . Piercing . | . . . . Sneak Attacks . | . . . . Combat Hostiles . | . . . . Follow-up Attacks . | . . . . Damage Inflicted 1109 | . 131 . 978 Guns 452 | . 131 . 321 Cannons . | . . . . Explosions 522 | . . . 522 Melee 135 | . . . 135 Ramming . | . . . . Kinetic 452 | . 131 . 321 Thermal . | . . . . Explosive 522 | . . . 522 Electromagnetic . | . . . . Impact 135 | . . . 135 Slashing . | . . . . Piercing . | . . . . Highest Corruption 2 | . . . 2 Average Corruption 2 | . . . 2 Corruption Purged . | . . . . Corruption Blocked . | . . . . Effects 4 | . . . 4 Matter Fused 1 | . . . 1 Energy Discharges 1 | . . . 1 Data Loss (minor) 2 | . . . 2 Overload Shots . | . . . . Overflow Damage 87 | . . . 87 Projectiles . | . . . . Explosions 6 | . . . 6 Melee 81 | . . . 81 Knockbacks 1 | . . . 1 Impact 1 | . . . 1 Kinetic . | . . . . Secondary . | . . . . Self-Inflicted Damage 18 | . . . 18 Shots 1 | . . . 1 Rammed . | . . . . Targets Rammed . | . . . . Kicked . | . . . . Crushed . | . . . . Highest Temperature 9 | . . . 9 Average Temperature 3 | . . . 3 Received Heat Transfer 384 | . 36 . 348 Siege Activations . | . . . . Martial Activations . | . . . . Shielding Activations . | . . . . Robots Disrupted . | . . . . Combat Hostiles . | . . . . Robots Corrupted 3 | . . . 3 Combat Hostiles 2 | . . . 2 Parts Fried 5 | . . . 5 Impact Corruptions 3 | . . . 3 Robots Melted . | . . . . Combat Hostiles . | . . . . Parts Melted . | . . . . Heat Transferred . | . . . . Parts Sabotaged . | . . . . Parts Stolen . | . . . . Parts Stripped . | . . . . Power Chain Reactions . | . . . . Alert | -11 -10 -10 -9 ------- Run | Yrd Mat Min Mat Maximum Alert Level 1 | . . . 1 Low Security (%) 81 | 100 100 100 54 Level 1 18 | . . . 45 Level 2 . | . . . . Level 3 . | . . . . Level 4 . | . . . . Level 5 . | . . . . High Security . | . . . . Max Security . | . . . . Peak Influence 340 | . 70 . 340 Initial . | . . . . Average 67 | . 7 . 160 Influence Increases 794 | . 132 . 662 Destroy 0b10 Robot/C 300 | . 100 . 200 Destroy 0b10 Robot/NC 20 | . . . 20 Destroy Leader 96 | . 20 . 76 Successful Hack 17 | . 12 . 5 Disable Machine 15 | . . . 15 Destroy Structure 76 | . . . 76 Partial Spotted 30 | . . . 30 Lose Combat Pursuer 240 | . . . 240 Influence Decreases 472 | . 132 . 340 Time Decay 282 | . 82 . 200 Lost Part 150 | . 10 . 140 Purge Threat 40 | . 40 . . Squads Dispatched 4 | . 2 . 2 Investigation 2 | . 2 . . Extermination . | . . . . Reinforcement 2 | . . . 2 Assault . | . . . . Garrison . | . . . . Intercept . | . . . . Searches Triggered . | . . . . Construction Impeded . | . . . . Haulers Reinforced . | . . . . Active Scanning Responses . | . . . . Cargo Convoy Interrupts . | . . . . Stealth | -11 -10 -10 -9 --------- Run | Yrd Mat Min Mat Distress Signals 2 | . . . 2 Communications Jammed . | . . . . Distress Signals . | . . . . Times Spotted 48 | . 13 . 35 Peak Tracking Total 7 | . 4 . 7 Tactical Retreats 6 | . . . 6 Traps | -11 -10 -10 -9 ------- Run | Yrd Mat Min Mat Traps Triggered 1 | . . . 1 Indirectly . | . . . . Trap Hack Attempts . | . . . . Triggered . | . . . . Disarmed . | . . . . Reprogrammed . | . . . . Reused . | . . . . Traps Extracted . | . . . . Installed . | . . . . Triggered . | . . . . Machines | -11 -10 -10 -9 ---------- Run | Yrd Mat Min Mat Machines Disabled 1 | . . . 1 Max in Single Turn 1 | . . . 1 Machines Repaired . | . . . . Machines Dismantled . | . . . . Machines Sabotaged . | . . . . Overloaded Fab Kills . | . . . . Hacking | -11 -10 -10 -9 --------- Run | Yrd Mat Min Mat Machines Accessed 8 | . 6 . 2 Terminals 6 | . 4 . 2 Fabricators . | . . . . Repair Stations 1 | . 1 . . Recycling Units 1 | . 1 . . Scanalyzers . | . . . . Garrison Access . | . . . . Total Hacks 17 | . 14 . 3 Successful 11 | . 10 . 1 Failed 6 | . 4 . 2 Catastrophic 1 | . . . 1 Database Lockouts . | . . . . Manual 3 | . 2 . 1 Terminals 12 | . 9 . 3 Fabricators . | . . . . Repair Stations 2 | . 2 . . Recycling Units 3 | . 3 . . Scanalyzers . | . . . . Garrison Access . | . . . . Terminal Hacks 7 | . 6 . 1 Robot Analysis 1 | . 1 . . Emergency Access Points 1 | . 1 . . Unreport Threat 1 | . 1 . . Dispatch Records 1 | . 1 . . Maintenance Status 1 | . 1 . . Hauler Manifests 1 | . . . 1 Zone Layout 1 | . 1 . . Fabricator Hacks . | . . . . Repair Station Hacks 2 | . 2 . . Scan Component 1 | . 1 . . Repair 1 | . 1 . . Recycling Unit Hacks 2 | . 2 . . Report Inventory 1 | . 1 . . Retrieve Components 1 | . 1 . . Scanalyzer . | . . . . Garrison Access Hacks . | . . . . Unauthorized Hacks . | . . . . Terminals . | . . . . Fabricators . | . . . . Repair Stations . | . . . . Recycling Units . | . . . . Scanalyzers . | . . . . Garrison Access . | . . . . Data Cores Recovered . | . . . . Used . | . . . . Hacking Detections 4 | . 2 . 2 Full Trace Events . | . . . . Feedback Events . | . . . . Feedback Blocked . | . . . . Robot Schematics Acquired . | . . . . Robots Built . | . . . . Authchips . | . . . . Time . | . . . . Total Robot Build Rating . | . . . . Part Schematics Acquired . | . . . . Parts Built . | . . . . Authchips . | . . . . Time . | . . . . Total Part Build Rating . | . . . . Part Studies Acquired . | . . . . Parts Repaired 1 | . 1 . . Time 26 | . 26 . . Parts Recycled . | . . . . Recycled Matter . | . . . . Retrieved Matter . | . . . . Retrieved Components 10 | . 10 . . Parts Scanalyzed . | . . . . Part Schematics Acquired . | . . . . Parts Damaged . | . . . . Bothacking | -11 -10 -10 -9 ------------ Run | Yrd Mat Min Mat Used RIF Installer . | . . . . Robots Hacked . | . . . . Non-combat . | . . . . Combat . | . . . . Robot Hacks Applied . | . . . . Relay Couplers Released . | . . . . Fabnet Peak Effective % . | . . . . Robots Rewired . | . . . . Allies Hacked . | . . . . Hacks Repelled . | . . . . Allies | -11 -10 -10 -9 -------- Run | Yrd Mat Min Mat Total Allies . | . . . . Largest Group . | . . . . Highest-Rated Group . | . . . . Highest-Rated Ally . | . . . . Total Orders . | . . . . Ally Attacks . | . . . . Total Damage . | . . . . Kills . | . . . . Allies Corrupted . | . . . . Allies Melted . | . . . . Intel | -11 -10 -10 -9 ------- Run | Yrd Mat Min Mat Active Infowar (turns) 342 | . . . 342 T.N.C. 342 | . . . 342 Robot Analysis Total 1 | . 1 . . Derelict Logs Recovered . | . . . . Drone Launches . | . . . . Drone Recoveries . | . . . . Exploration | -11 -10 -10 -9 ------------- Run | Yrd Mat Min Mat Turns Passed 1219 | 94 596 40 489 Spaces Moved 1104 | 65 416 34 589 Core 15 | 14 . . 1 Treads . | . . . . Legs 504 | 51 416 34 3 Wheels . | . . . . Hover . | . . . . Flight 585 | . . . 585 Fastest Speed 32 | 50 120 120 32 Average Speed 82 | 126 121 120 48 Slowest Speed 250 | 200 190 120 250 Overloaded Moves . | . . . . Propulsion Burnouts . | . . . . Robots Hopped 2 | . . . 2 Potential Cave-ins . | . . . . Cave-ins Triggered . | . . . . Exploration Rate (%) 35 | 4 60 23 54 Regions Visited 3 Branch Regions 1 Pre-discovered Areas . | . . . . Known Exits Taken . | . . . . Unknown Exits Taken 3 | 1 1 1 . Scrap Searched . | . . . . Spaces Dug . | . . . . Terrain Destroyed 104 | . . . 104 Melee . | . . . . Projectile . | . . . . AOE 104 | . . . 104 Terrain Rammed . | . . . . Walls Destroyed . | . . . . Machines Disabled . | . . . . Actions | -11 -10 -10 -9 --------- Run | Yrd Mat Min Mat Total 1295 | 74 479 33 709 Wait 46 | . 33 . 13 Move 1097 | 64 415 33 585 Hop 2 | . . . 2 Pick Up 11 | 4 6 . 1 Fast Attach 17 | 6 4 . 7 Attach 10 | . . . 10 Detach 2 | . . . 2 Swap 3 | . . . 3 Drop 5 | . 3 . 2 Fire 95 | . 18 . 77 Melee 7 | . . . 7 Ram . | . . . . Kick . | . . . . Crush . | . . . . Escape Stasis . | . . . . Rewire . | . . . . Trap . | . . . . Miscellaneous . | . . . . Route ------- -11/Scrapyard -10/Materials (discovered 5 exits: *Mat x2 / [*Min x2] / [*Sub]) -10/Mines -9/Materials (discovered 1 exit: [*Mat]) History --------- Turn | Location | Event 33 | -11/Scrapyard | Discovered new exit (range 15) 95 | -11/Scrapyard | Entered Materials 96 | -10/Materials | Met a group of wandering Federalists 134 | -10/Materials | Discovered new exit (range 8) 285 | -10/Materials | Repaired Aluminum Leg 312 | -10/Materials | Discovered new exit (range 12) 314 | -10/Materials | Build established: Mutant 449 | -10/Materials | Discovered new exit (range 16) 544 | -10/Materials | Discovered new exit (range 12) 588 | -10/Materials | Discovered new exit (range 15) 691 | -10/Materials | Entered Mines 717 | -10/Mines | Discovered new exit (range 11) 731 | -10/Mines | Entered Materials 731 | -9/Materials | Evolved 2 slots: Propulsion x1, Utility x1 1015 | -9/Materials | Lost 5 parts (1p3n1w) 1027 | -9/Materials | Core integrity fell below 50% 1092 | -9/Materials | Lost 3 parts (1n1u1w) 1117 | -9/Materials | Discovered new exit (range 5) 1197 | -9/Materials | Core integrity fell below 20% 1220 | -9/Materials | Destroyed by Y-45 Defender with Beam Rifle Last Messages --------------- 01117_ The unstable cave ceiling collapses. 01117_ EXIT=FOUND 01118_ K-01 Serf collects debris. 01186_ Y-45 Defender destroyed. 01194_ R-06 Scavenger collects Hvy. Assault Rifle. 01198_ A-02 Transporter destroyed. 01199_ U-05 Engineer lays Concrete. 01200_ K-01 Serf collects debris. 01200_ U-05 Engineer lays Concrete. 01200_ Destroyed Structural Scanner. 01202_ The unstable cave ceiling collapses. 01204_ A-02 Transporter destroyed. 01217_ Critical hit (Burn: +37). 01217_ Imp. Flight Unit destroyed. 01218_ The unstable cave ceiling collapses. 01218_ Huge Storage Unit crushed. 01218_ R-06 Scavenger collects Huge Storage Unit. 01219_ R-06 Scavenger collects Cooling System. Map ----- +----------------------------------------------------+ | ####/##### #? ?????????????????????# # | | # [# # """?????????????????????# *# | | # """"" # # """?????????????????????# # | | # """"" # / ""??????????????????????# # | | # """"" # #?????????????????????????#####+##### | | # """"" + #?????????????????????????????# #???? | | # """"" # #?????????????????????????????# #???? | | # """"" # #?????????????????????????????# #???? | | # """"" # #????????????????????????###### ##### | | # # #????????????????????????# | | ########## #????????????????????????# | | ?????????# #????????????????????????# | | ?????????# #????????????+???######### T | | ?????????# #???????????# #??# """ # | | ?????????# #???????????# #??# """ # | | ?????????# #?????????### #### """ + | | ??######## #?????????# # # #### | | ??# """ # #???????### # # # """ #??? | | ??# """ # #??????## ###### """ #??? | | ??# """ # #??##### r ####??# """ #?? | | ??# # #?##!!!! %# % #### # | | ??# # #?#! ! #[ + + | | ??# # #?# # # ######+#### | | ######+### ### !! * # # #? | | w !%! ** + #? | | =! @ *** ## #? | | r Y ## #? | | ######+### ### #? | | ??# # #?# # ### #? | | ??#""" # #?#??# """ ??# #? | | ??#""" # #????# """ !??# "T" # ## #? | | ??#""" # #????# """ ??######## ## #? | | ??# # #????# ?????????? ##+###+###? | | ??# # #?????? ?????????? ?????????? | | ??######## #??????####??????????? ????????? | | ?????????# #????????????????????? #?????????? | | ?????????# #?????????????????????#+##??????????? | | ?????????#== #???????????????????????????????????? | | ?????????#####???????????????????????????????????? | | ?????????????????????????????????????????????????? | | ?????????????????????????????????????????????????? | | ?????????????????????????????????????????????????? | | ?????????????????????????????????????????????????? | | ?????????????????????????????????????????????????? | | | | | | | | | | | | | +----------------------------------------------------+ Best States ------------- Heat Dissipation 28 Energy Generation 14 Energy Capacity 250 Matter Stores 300 Matter Capacity 300 Sight Range 16 Terrain Scan Density 10 Evasion (%) 63 Targeting Accuracy 5 Item Schematics ----------------- None Robot Schematics ------------------ None Fabricated ------------ Nothing Repaired ---------- Aluminum Leg | 64% | -10/Materials Studied --------- None Alien Tech Used ----------------- None Achievements -------------- Power Corrupts Risk Taker Shopping List Challenges ------------ None Game ------ Seed BattlePiercelightPlatform Manual? 0 Play Time 00:21:51 Cumulative 3.6 hours Start 2025.12.30 @ 23:09:22 End 2025.12.30 @ 23:31:29 Sessions 1 Manual Loads 0 Difficulty Rogue Special Mode None Game No. 8 Rogue 8 Adventurer 0 Explorer 0 Win Type - Total 0 Types 0/0/0/0/0/0/0/0/0/0 Lore% 6 Gallery% 4 Achievement% 7 Wizard Run 0 Options --------- Layout 1 ASCII 0 Keyboard 1 Movement Vi Keybinds 0 Fullscreen 1 Font 24/Smallcaps Map View 50x35 Zoom Use 6% Tactical HUD 1 Map Filters NONE Filters NONE Steam 1 RUN: 59cc6a91-73c9-4e56-9fa1-c1c39f6f899f